bitfinex/quotes_BTCUSD_20250422
["timestamp","ask_amount","ask_price","bid_price","bid_amount"]
[1745281400304,0.27711397,87522.0,87521.0,0.00045537]
[1745281400731,0.27811397,87522.0,87521.0,0.00045537]
[1745281402544,0.28051397,87522.0,87521.0,0.00045537]
[1745281404056,0.27851397,87522.0,87521.0,0.00045537]
[1745281404449,0.44051397,87522.0,87521.0,0.00045537]
[1745281404665,0.28051397,87522.0,87521.0,0.00045537]
[1745281404968,0.27951397,87522.0,87521.0,0.00045537]
[1745281405177,0.28151397,87522.0,87521.0,0.00045537]
[1745281407354,0.23251397,87522.0,87521.0,0.00045537]
[1745281407561,0.004,87522.0,87521.0,0.03549708]
[1745281407774,0.004,87522.0,87521.0,0.12796178]
[1745281407985,0.004,87522.0,87521.0,0.32143665]
[1745281408404,0.002,87522.0,87521.0,0.32143665]
[1745281409692,0.01142452,87531.0,87526.0,0.23992702]
[1745281409905,0.01142452,87531.0,87528.0,0.01142491]
[1745281410783,0.01142452,87531.0,87521.0,0.00045537]
[1745281411019,0.22851397,87522.0,87521.0,0.00045537]
[1745281412128,0.34326991,87522.0,87521.0,0.00045537]
[1745281412363,0.39256991,87522.0,87521.0,0.00045537]
[1745281412588,0.39356991,87522.0,87521.0,0.00045537]
[1745281412816,0.43433784,87522.0,87521.0,1e-08]
[1745281413030,0.48243784,87522.0,87521.0,1e-08]
[1745281413678,0.48443784,87522.0,87521.0,1e-08]
[1745281413878,0.48343784,87522.0,87521.0,1e-08]
[1745281414093,0.45633803,87522.0,87521.0,1e-08]
[1745281417758,0.35893803,87522.0,87521.0,1e-08]
[1745281422226,0.42229962,87522.0,87521.0,1e-08]
[1745281422775,0.30854368,87522.0,87521.0,1e-08]
[1745281423194,0.39495556,87522.0,87521.0,1e-08]
[1745281423855,0.38995556,87522.0,87521.0,1e-08]
[1745281424069,0.39295556,87522.0,87521.0,1e-08]
[1745281424214,0.29787556,87522.0,87521.0,1e-08]
[1745281424432,0.39195556,87522.0,87521.0,1e-08]
[1745281424835,0.16544159,87522.0,87521.0,1e-08]
[1745281426660,0.16344159,87522.0,87521.0,1e-08]
[1745281427341,0.16144159,87522.0,87521.0,1e-08]
[1745281433335,0.38995556,87522.0,87521.0,1e-08]
[1745281433547,0.16144159,87522.0,87521.0,1e-08]
[1745281438254,0.16144159,87522.0,87521.0,0.09550001]
[1745281438365,0.06436159,87522.0,87521.0,0.09550001]
[1745281444375,0.06436159,87522.0,87521.0,0.04720001]
[1745281445000,0.29287556,87522.0,87521.0,1e-08]
[1745281446083,0.29387556,87522.0,87521.0,1e-08]
[1745281446284,0.29487556,87522.0,87521.0,1e-08]
[1745281451619,0.06636159,87522.0,87521.0,1e-08]
[1745281451820,0.06636159,87522.0,87521.0,0.22851659]
[1745281451967,0.06636159,87522.0,87521.0,0.24305744]
[1745281452343,0.06636159,87522.0,87521.0,0.40631338]
[1745281454012,0.06536159,87522.0,87521.0,0.40631338]
[1745281454466,0.06436159,87522.0,87521.0,0.40631338]
[1745281456678,0.06436159,87522.0,87521.0,0.22851659]
[1745281457200,0.06436159,87522.0,87521.0,0.24305744]
[1745281462629,1e-08,87522.0,87521.0,0.79361338]
[1745281463599,1e-08,87522.0,87521.0,0.79461338]
[1745281464214,1e-08,87522.0,87521.0,0.79561338]
[1745281464484,1e-08,87522.0,87521.0,0.79461338]
[1745281464690,1e-08,87522.0,87521.0,0.79361338]
[1745281464865,1e-08,87522.0,87521.0,0.79561338]
[1745281465066,1e-08,87522.0,87521.0,0.79661338]
[1745281466264,1e-08,87522.0,87521.0,0.79561338]
[1745281466559,1e-08,87522.0,87521.0,0.79761338]
[1745281471003,1e-08,87522.0,87521.0,0.79661338]
[1745281471194,1e-08,87522.0,87521.0,0.79761338]
[1745281471560,1e-08,87522.0,87521.0,0.92901509]
[1745281471786,1e-08,87522.0,87521.0,1.01146908]
[1745281471989,1e-08,87522.0,87521.0,1.21146908]
[1745281472905,1e-08,87522.0,87521.0,1.20946908]
[1745281473208,1e-08,87522.0,87521.0,0.99761338]
[1745281473436,1e-08,87522.0,87521.0,0.99561338]
[1745281473668,1e-08,87522.0,87521.0,0.99361338]
[1745281473871,1e-08,87522.0,87521.0,0.79561338]
[1745281474355,1e-08,87522.0,87521.0,0.79361338]
[1745281474542,1e-08,87522.0,87521.0,0.79561338]
[1745281475170,1e-08,87522.0,87521.0,0.79661338]
[1745281476423,1e-08,87522.0,87521.0,0.88265509]
[1745281476624,0.0008444,87546.0,87543.0,0.583]
[1745281476847,0.0008444,87546.0,87543.0,0.69675594]
[1745281478274,0.0018448,87544.0,87543.0,0.69675594]
[1745281479518,0.0008448,87544.0,87543.0,0.69675594]
[1745281480248,0.0008444,87546.0,87543.0,0.70817889]
[1745281480452,0.0008448,87553.0,87550.0,0.35454085]
[1745281480674,0.0008448,87553.0,87550.0,0.46829679]
[1745281481703,0.00188973,87551.0,87550.0,0.46829679]
[1745281481917,0.00088973,87551.0,87550.0,0.46829679]
[1745281482260,0.00188973,87551.0,87550.0,0.46829679]
[1745281483495,0.00188973,87551.0,87550.0,0.12829679]
[1745281483702,0.00188973,87551.0,87550.0,0.46829679]
[1745281493242,0.01142217,87549.0,87545.0,0.01142269]
[1745281493478,0.00188973,87551.0,87546.0,0.01142256]
[1745281493698,0.0456,87550.0,87547.0,0.01142243]
[1745281494140,0.05702204,87550.0,87546.0,0.01142256]
[1745281494362,0.001,87549.0,87546.0,0.01142256]
[1745281494782,0.05702204,87550.0,87547.0,0.01142243]
[1745281494998,0.05802204,87550.0,87546.0,0.01142256]
[1745281495222,0.0466,87550.0,87547.0,0.01142243]
[1745281495429,0.0456,87550.0,87547.0,0.01142243]
[1745281495646,0.001,87549.0,87547.0,0.01142243]
[1745281495884,0.22845469,87545.0,87541.0,0.01142321]
[1745281496160,0.23987738,87545.0,87541.0,0.01142321]
[1745281497311,0.01142282,87544.0,87540.0,0.01142334]
[1745281498179,0.24087738,87545.0,87541.0,0.01142321]
[1745281498497,0.23987738,87545.0,87541.0,0.01142321]
[1745281498804,0.001,87544.0,87541.0,0.01142321]
[1745281499557,0.01242282,87544.0,87540.0,0.01142334]
[1745281499715,0.01242282,87544.0,87539.0,0.22846943]
[1745281499948,0.22847095,87539.0,87535.0,0.011424]
[1745281500116,0.23989006,87541.0,87536.0,0.23990118]
[1745281500331,0.01142347,87539.0,87535.0,0.011424]
[1745281500528,0.01142426,87533.0,87526.0,0.01142517]
[1745281500896,0.23990424,87535.0,87529.0,0.01142478]
[1745281501103,0.23990424,87535.0,87531.0,0.01142452]
[1745281501514,0.01142439,87532.0,87529.0,0.01142478]
[1745281501966,0.23990611,87535.0,87530.0,0.01142465]
[1745281502362,0.23990932,87534.0,87530.0,0.01142465]
[1745281502805,0.01142387,87536.0,87532.0,0.01142439]
[1745281503012,0.011424,87535.0,87532.0,0.01142439]
[1745281503217,0.012424,87535.0,87532.0,0.01142439]
[1745281503468,0.24090621,87535.0,87530.0,0.01142465]
[1745281503782,0.23990924,87534.0,87530.0,0.01142465]
[1745281504800,0.22848221,87535.0,87531.0,0.01142452]
[1745281505008,0.23990621,87535.0,87531.0,0.01142452]
[1745281506825,0.23490621,87535.0,87531.0,0.01142452]
[1745281507285,0.23989616,87538.0,87532.0,0.01142439]
[1745281507513,0.046,87540.0,87537.0,0.01142374]
[1745281507721,0.046,87540.0,87535.0,0.011424]
[1745281507937,0.05742334,87540.0,87536.0,0.01142387]
[1745281508333,0.001,87538.0,87536.0,0.01142387]
[1745281508925,0.05842334,87540.0,87536.0,0.01142387]
[1745281509452,0.05942334,87540.0,87536.0,0.01142387]
[1745281510254,0.001,87540.0,87537.0,0.23989664]
[1745281510477,0.001,87540.0,87538.0,0.22847023]
[1745281510681,0.22844396,87549.0,87542.0,0.01142308]
[1745281510882,0.22845342,87546.0,87542.0,0.01142308]
[1745281511083,0.23986486,87550.0,87543.0,0.01142295]
[1745281511597,0.00088973,87551.0,87543.0,0.01142295]
[1745281511810,0.29368361,87549.0,87545.0,0.01142269]
[1745281512232,0.002,87546.0,87545.0,0.01142269]
[1745281512444,0.001,87546.0,87545.0,0.01142269]
[1745281513386,0.2398693,87548.0,87543.0,0.23988]
[1745281513598,0.2398693,87548.0,87544.0,0.01142282]
[1745281514208,0.001,87546.0,87544.0,0.01142282]
[1745281514528,0.002,87546.0,87544.0,0.01142282]
[1745281514817,0.2408693,87548.0,87544.0,0.01142282]
[1745281515216,0.2418693,87548.0,87544.0,0.01142282]
[1745281515416,0.002,87548.0,87546.0,0.22844911]
[1745281515628,0.001,87548.0,87546.0,0.22844911]
[1745281516369,0.05381555,87549.0,87548.0,0.2284461]
[1745281517529,0.05481555,87549.0,87548.0,0.2284461]
[1745281517770,0.05481555,87549.0,87546.0,0.23987167]
[1745281518798,0.05381555,87549.0,87546.0,0.23987167]
[1745281519553,0.05381555,87549.0,87535.0,0.01454085]
[1745281519554,0.22847321,87538.0,87535.0,0.01454085]
[1745281519771,0.01142321,87541.0,87537.0,0.01142374]
[1745281519979,0.01142308,87542.0,87538.0,0.01142361]
[1745281520623,0.01142308,87542.0,87539.0,0.01142347]
[1745281520841,0.0484,87544.0,87541.0,0.01142321]
[1745281521021,0.01142256,87546.0,87543.0,0.01142295]
[1745281521253,0.23987607,87546.0,87542.0,0.01142308]
[1745281521466,0.01142269,87545.0,87542.0,0.01142308]
[1745281521891,0.001,87542.0,87541.0,0.23988518]
[1745281522510,0.001,87542.0,87540.0,0.01142334]
[1745281523157,0.01142295,87543.0,87540.0,0.01142334]
[1745281523795,0.22846437,87541.0,87537.0,0.23989824]
[1745281524007,0.01242308,87542.0,87537.0,0.23989824]
[1745281524213,0.01142321,87541.0,87538.0,0.01142361]
[1745281525471,0.23988662,87542.0,87538.0,0.01142361]
[1745281525685,0.01068496,87550.0,87533.0,0.01142426]
[1745281525686,0.01142361,87538.0,87533.0,0.01142426]
[1745281525891,0.01142387,87536.0,87532.0,0.01142439]
[1745281526092,0.23990085,87537.0,87533.0,0.23990951]
[1745281526506,0.23990085,87537.0,87533.0,0.01142426]
[1745281526745,0.23990085,87537.0,87533.0,0.23990951]
[1745281527365,0.01142361,87538.0,87534.0,0.01142413]
[1745281527538,0.0459,87539.0,87535.0,0.011424]
[1745281527945,0.0459,87539.0,87536.0,0.01142387]
[1745281528149,0.0459,87539.0,87536.0,0.23989986]
[1745281528465,0.001,87541.0,87538.0,0.01142361]
[1745281529462,0.23988642,87542.0,87538.0,0.01142361]
[1745281529585,0.01142321,87541.0,87538.0,0.01142361]
[1745281529787,0.001,87539.0,87538.0,0.01142361]
[1745281530015,0.01142334,87540.0,87536.0,0.01142387]
[1745281530230,0.01142374,87537.0,87534.0,0.01142413]
[1745281530457,0.01142361,87538.0,87535.0,0.011424]
[1745281532315,0.001,87539.0,87536.0,0.2398989]
[1745281532524,0.001,87539.0,87538.0,0.2284722]
[1745281532730,0.23988128,87544.0,87538.0,0.2284722]
[1745281532950,0.01142295,87543.0,87540.0,0.01142334]
[1745281533617,0.01142282,87544.0,87540.0,0.23988851]
[1745281533863,0.23988109,87544.0,87540.0,0.23988851]
[1745281534167,0.001,87543.0,87540.0,0.23988851]
[1745281534456,0.001,87543.0,87541.0,0.22846229]
[1745281535098,0.002,87543.0,87541.0,0.22846229]
[1745281535464,0.001,87543.0,87541.0,0.22846229]
[1745281536345,0.002,87543.0,87541.0,0.22846229]
[1745281536564,0.001,87543.0,87541.0,0.22846229]
[1745281536872,0.002,87543.0,87541.0,0.22846229]
[1745281538488,0.002,87543.0,87540.0,0.01142334]
[1745281538696,0.002,87543.0,87541.0,0.22846226]
[1745281539102,0.002,87543.0,87540.0,0.01142334]
[1745281539332,0.001,87543.0,87540.0,0.01142334]
[1745281539735,0.002,87543.0,87540.0,0.01142334]
[1745281540072,0.002,87543.0,87541.0,0.22846375]
[1745281540302,0.001,87543.0,87541.0,0.22846375]
[1745281540514,0.002,87543.0,87541.0,0.22846375]
[1745281541093,0.001,87543.0,87541.0,0.22846375]
[1745281541298,0.002,87543.0,87541.0,0.22846375]
[1745281542129,0.001,87543.0,87541.0,0.22846375]
[1745281542329,0.002,87543.0,87541.0,0.22846375]
[1745281545428,0.002,87543.0,87540.0,0.01142334]
[1745281545673,0.002,87543.0,87541.0,0.22846437]
[1745281547184,0.001,87543.0,87541.0,0.22846437]
[1745281547402,0.002,87543.0,87541.0,0.22846437]
[1745281547605,0.00484486,87548.0,87543.0,0.22845915]
[1745281547812,0.23329277,87548.0,87543.0,0.22845915]
[1745281548022,0.01142243,87547.0,87544.0,0.01142282]
[1745281549533,0.01242243,87547.0,87544.0,0.01142282]
[1745281550560,0.01342243,87547.0,87544.0,0.01142282]
[1745281550778,0.01342243,87547.0,87544.0,0.23987916]
[1745281550983,0.01342243,87547.0,87544.0,0.01142282]
[1745281552695,0.23987388,87546.0,87542.0,0.01142308]
[1745281552912,0.01142282,87544.0,87540.0,0.01142334]
[1745281553289,0.01142308,87542.0,87538.0,0.23989543]
[1745281553491,0.23988083,87544.0,87539.0,0.01142347]
[1745281553685,0.01142308,87542.0,87538.0,0.01142361]
[1745281554086,0.01142308,87542.0,87539.0,0.01142347]
[1745281555067,0.01242308,87542.0,87539.0,0.01142347]
[1745281556307,0.01142308,87542.0,87539.0,0.01142347]
[1745281556522,0.01242308,87542.0,87539.0,0.01142347]
[1745281556711,0.001,87542.0,87539.0,0.239891]
[1745281557133,0.001,87542.0,87540.0,0.22846485]
[1745281558146,0.01142282,87544.0,87540.0,0.22846485]
[1745281558385,0.23988164,87544.0,87539.0,0.239891]
[1745281558593,0.01142295,87543.0,87539.0,0.239891]
[1745281558767,0.001,87542.0,87539.0,0.239891]
[1745281559123,0.01142321,87541.0,87538.0,0.01142361]
[1745281559332,0.01142321,87541.0,87537.0,0.23989623]
[1745281559768,0.001,87542.0,87540.0,0.22846698]
[1745281560234,0.01142295,87543.0,87540.0,0.23989032]
[1745281560448,0.001,87542.0,87540.0,0.23989032]
[1745281560905,0.01142295,87543.0,87540.0,0.23989032]
[1745281561123,0.01142269,87545.0,87542.0,0.01142308]
[1745281562432,0.01142282,87544.0,87541.0,0.01142321]
[1745281562718,0.001,87543.0,87541.0,0.01142321]
[1745281563230,0.01142282,87544.0,87541.0,0.01142321]
[1745281563660,0.01242282,87544.0,87541.0,0.01142321]
[1745281564289,0.001,87544.0,87541.0,0.2398858]
[1745281564500,0.001,87544.0,87541.0,0.01142321]
[1745281564757,0.001,87543.0,87541.0,0.01142321]
[1745281564965,0.001,87544.0,87541.0,0.239885]
[1745281565409,0.002,87544.0,87541.0,0.239885]
[1745281565634,0.23987708,87545.0,87541.0,0.239885]
[1745281566021,0.002,87543.0,87541.0,0.239885]
[1745281566539,0.001,87543.0,87541.0,0.239885]
[1745281567411,0.002,87543.0,87541.0,0.239885]
[1745281572007,0.001,87543.0,87541.0,0.239885]
[1745281572748,0.002,87543.0,87541.0,0.239885]
[1745281573403,0.002,87543.0,87542.0,0.18028124]
[1745281573665,0.002,87543.0,87542.0,0.569981]
[1745281573876,0.002,87543.0,87542.0,0.56769679]
[1745281574304,0.05381555,87549.0,87548.0,0.58298695]
[1745281574528,0.05381555,87549.0,87548.0,0.79614289]
[1745281575924,0.05381555,87549.0,87548.0,0.79814289]
[1745281578755,0.00088973,87551.0,87550.0,0.29268174]
[1745281578955,0.00088973,87551.0,87550.0,0.40643768]
[1745281581047,0.00088973,87551.0,87550.0,0.40743768]
[1745281581855,0.00088973,87551.0,87550.0,0.40843768]
[1745281588075,0.0004222,87574.0,87563.0,0.34]
[1745281588288,0.0004222,87574.0,87564.0,0.78800115]
[1745281588519,0.00129974,87565.0,87564.0,0.78800115]
[1745281589362,0.00129974,87565.0,87564.0,0.78900115]
[1745281589993,0.00129974,87565.0,87564.0,0.79000115]
[1745281590923,0.00129974,87565.0,87564.0,0.79100115]
[1745281592709,0.00129974,87565.0,87564.0,0.78900115]
[1745281592894,0.00129974,87565.0,87564.0,0.79000115]
[1745281593120,0.00129974,87565.0,87564.0,0.78900115]
[1745281593635,0.00129974,87565.0,87564.0,0.79100115]
[1745281595000,0.0004222,87574.0,87567.0,0.22839654]
[1745281595253,0.0004222,87574.0,87567.0,0.69897663]
[1745281595481,0.0004222,87574.0,87567.0,0.69669333]
[1745281596665,0.0004222,87574.0,87567.0,0.69869333]
[1745281597690,1e-08,87574.0,87567.0,0.69869333]
[1745281597937,1e-08,87574.0,87573.0,0.74347768]
[1745281600042,1e-08,87574.0,87573.0,0.79227768]
[1745281600248,0.0008448,87579.0,87578.0,0.5829087]
[1745281600467,0.0008448,87579.0,87578.0,0.69666464]
[1745281601569,0.0008448,87579.0,87578.0,0.70783492]
[1745281602811,0.0008448,87579.0,87578.0,0.70883492]
[1745281603443,0.0476,87608.0,87596.0,0.24286177]
[1745281603639,0.00055881,87601.0,87600.0,0.24285135]
[1745281603946,0.00055881,87601.0,87600.0,0.35660729]
[1745281604917,0.00255881,87601.0,87600.0,0.35660729]
[1745281607414,0.00255881,87601.0,87600.0,0.24285135]
[1745281607628,0.00255881,87601.0,87600.0,0.2283105]
[1745281607629,0.05335881,87601.0,87600.0,0.2283105]
[1745281608330,0.01141565,87599.0,87593.0,0.02595728]
[1745281608547,0.01141565,87599.0,87594.0,0.0114163]
[1745281608769,0.04528464,87598.0,87595.0,0.23973767]
[1745281609006,0.04528464,87598.0,87596.0,0.2397349]
[1745281609649,0.04528464,87598.0,87596.0,0.01141604]
[1745281609835,0.04528464,87598.0,87589.0,0.23975478]
[1745281609836,0.0974,87597.0,87589.0,0.23975478]
[1745281610154,0.06121617,87595.0,87591.0,0.01141669]
[1745281610710,0.22833068,87593.0,87587.0,0.22834438]
[1745281610927,0.049,87592.0,87587.0,0.22834408]
[1745281611406,0.049,87592.0,87589.0,0.22833674]
[1745281611855,0.049,87592.0,87589.0,0.22933674]
[1745281612038,0.049,87592.0,87589.0,0.001]
[1745281612251,0.049,87582.0,87578.0,0.01141839]
[1745281612462,0.0488,87581.0,87578.0,0.01141839]
[1745281612611,0.0488,87581.0,87579.0,0.22836275]
[1745281615781,0.27716263,87581.0,87568.0,0.01141969]
[1745281615997,0.046,87570.0,87568.0,0.22839386]
[1745281617349,0.046,87580.0,87577.0,0.01141852]
[1745281617573,0.046,87580.0,87579.0,0.22836524]
[1745281618311,0.4159,87588.0,87584.0,0.01141761]
[1745281618518,0.4159,87588.0,87585.0,0.01141748]
[1745281618725,0.046,87587.0,87585.0,0.01141748]
[1745281619325,0.046,87587.0,87585.0,0.2397649]
[1745281620474,0.048,87587.0,87585.0,0.2397649]
[1745281620692,0.048,87587.0,87585.0,0.01141748]
[1745281622249,0.048,87587.0,87573.0,0.01141904]
[1745281622250,0.011418,87581.0,87573.0,0.01141904]
[1745281622466,0.011418,87581.0,87578.0,0.01141839]
[1745281622933,0.23978076,87580.0,87576.0,0.01141865]
[1745281623151,0.01141761,87584.0,87578.0,0.01141839]
[1745281623152,0.23977459,87583.0,87578.0,0.01141839]
[1745281623377,0.01141787,87582.0,87578.0,0.01141839]
[1745281623594,0.23980486,87572.0,87567.0,0.23981455]
[1745281623802,0.01141891,87574.0,87570.0,0.23980798]
[1745281624015,0.01141891,87574.0,87570.0,0.01141943]
[1745281624484,0.0956,87576.0,87572.0,0.01141917]
[1745281625386,0.22837901,87574.0,87571.0,0.0114193]
[1745281625621,0.01141878,87575.0,87571.0,0.0114193]
[1745281625867,0.32397342,87576.0,87572.0,0.01141917]
[1745281626087,0.0956,87576.0,87573.0,0.01141904]
[1745281627326,0.0966,87576.0,87573.0,0.01141904]
[1745281628709,0.047,87576.0,87574.0,0.22837828]
[1745281629117,0.047,87576.0,87573.0,0.01141904]
[1745281629757,0.046,87576.0,87573.0,0.01141904]
[1745281629967,0.047,87576.0,87573.0,0.01141904]
[1745281630578,0.048,87576.0,87573.0,0.01141904]
[1745281630794,0.048,87576.0,87573.0,0.23979825]
[1745281631557,0.048,87576.0,87574.0,0.22837625]
[1745281631768,0.002,87576.0,87574.0,0.22837625]
[1745281631975,0.002,87576.0,87573.0,0.23979825]
[1745281632717,0.23978697,87578.0,87573.0,0.01141904]
[1745281632932,0.22836858,87578.0,87574.0,0.01141891]
[1745281633166,0.001,87576.0,87574.0,0.01141891]
[1745281633602,0.002,87576.0,87574.0,0.01141891]
[1745281634144,0.22936858,87578.0,87575.0,0.01141878]
[1745281634773,0.001,87576.0,87575.0,0.02595963]
[1745281634981,0.001,87576.0,87575.0,0.2543353]
[1745281636657,0.64424515,87587.0,87583.0,0.01141774]
[1745281636927,0.23976236,87587.0,87583.0,0.01141774]
[1745281637133,0.4159,87597.0,87591.0,0.01141669]
[1745281637339,0.4159,87597.0,87593.0,0.01141643]
[1745281637549,0.4159,87597.0,87594.0,0.0114163]
[1745281637901,0.01141604,87596.0,87591.0,0.23975012]
[1745281638114,0.4159,87597.0,87594.0,0.0114163]
[1745281638344,0.4159,87597.0,87595.0,0.22832353]
[1745281638740,0.4169,87597.0,87595.0,0.22832353]
[1745281639117,0.4169,87597.0,87594.0,0.0114163]
[1745281639319,0.4169,87597.0,87593.0,0.23974515]
[1745281639789,0.4159,87597.0,87593.0,0.23974515]
[1745281640086,0.001,87596.0,87594.0,0.0114163]
[1745281640322,0.001,87596.0,87594.0,0.23973984]
[1745281640503,0.4159,87597.0,87596.0,0.22832092]
[1745281640751,0.001,87597.0,87596.0,0.22832092]
[1745281641630,0.04528464,87598.0,87596.0,0.22832092]
[1745281641853,0.001,87597.0,87596.0,0.22832092]
[1745281642471,0.001,87597.0,87595.0,0.01141617]
[1745281642671,0.001,87597.0,87595.0,0.2397377]
[1745281643226,0.04528464,87598.0,87596.0,0.22831886]
[1745281643433,0.04628464,87598.0,87596.0,0.22831886]
[1745281643612,0.04528464,87598.0,87596.0,0.22831886]
[1745281644115,0.001,87597.0,87596.0,0.22831886]
[1745281644327,0.04528464,87598.0,87596.0,0.22831886]
[1745281644571,0.04628464,87598.0,87596.0,0.22831886]
[1745281660119,0.04628464,87598.0,87595.0,0.2397377]
[1745281660253,0.05770042,87598.0,87595.0,0.01141617]
[1745281660454,0.04628464,87598.0,87596.0,0.22832092]
[1745281661536,0.04628464,87598.0,87595.0,0.23973746]
[1745281663058,0.04528464,87598.0,87595.0,0.23973746]
[1745281663262,0.04628464,87598.0,87595.0,0.23973746]
[1745281663920,0.04628464,87598.0,87595.0,0.23973812]
[1745281666771,0.04628464,87598.0,87597.0,0.22831832]
[1745281667279,0.04628464,87598.0,87595.0,0.23973812]
[1745281667727,0.04628464,87598.0,87597.0,0.61401832]
[1745281667963,0.04628464,87598.0,87597.0,0.74231511]
[1745281668630,0.04528464,87598.0,87597.0,0.74231511]
[1745281668964,0.04728464,87598.0,87597.0,0.74231511]
[1745281677109,0.04728464,87598.0,87597.0,0.74331511]
[1745281678040,0.04858533,87598.0,87597.0,0.74331511]
[1745281683842,0.04858533,87598.0,87597.0,0.001]
[1745281684055,0.04858533,87598.0,87597.0,0.22931832]
[1745281684280,0.04858533,87598.0,87597.0,0.001]
[1745281684952,0.04758533,87598.0,87597.0,0.001]
[1745281685137,0.04858533,87598.0,87597.0,0.001]
[1745281685363,0.04758533,87598.0,87597.0,0.001]
[1745281685791,0.04858533,87598.0,87597.0,0.001]
[1745281687577,0.04758533,87598.0,87597.0,0.001]
[1745281687786,0.04958533,87598.0,87597.0,0.001]
[1745281688205,0.04758533,87598.0,87597.0,0.001]
[1745281688410,0.04858533,87598.0,87597.0,0.001]
[1745281689041,0.09998533,87598.0,87597.0,0.001]
[1745281689746,0.51588533,87598.0,87597.0,0.001]
[1745281689942,0.52702516,87598.0,87597.0,0.001]
[1745281690680,0.52402516,87598.0,87597.0,0.001]
[1745281690884,0.51288533,87598.0,87597.0,0.001]
[1745281691303,0.51488533,87598.0,87597.0,0.001]
[1745281692012,0.51688533,87598.0,87597.0,0.001]
[1745281692222,0.51288533,87598.0,87597.0,0.001]
[1745281692422,0.51488533,87598.0,87597.0,0.001]
[1745281697687,0.61080533,87598.0,87597.0,0.001]
[1745281698861,0.65615288,87598.0,87597.0,0.001]
[1745281701303,0.76990882,87598.0,87597.0,0.001]
[1745281706706,1.10790882,87598.0,87597.0,0.001]
[1745281707082,1.10990882,87598.0,87597.0,0.001]
[1745281707284,1.11190882,87598.0,87597.0,0.001]
[1745281707520,1.27436087,87598.0,87597.0,0.001]
[1745281707911,1.28501124,87598.0,87597.0,0.001]
[1745281708309,1.28101124,87598.0,87597.0,0.001]
[1745281708613,1.17225919,87598.0,87597.0,0.001]
[1745281710784,0.01141891,87574.0,87567.0,0.01141982]
[1745281711010,0.4159,87573.0,87567.0,0.01141982]
[1745281711969,0.2283889,87570.0,87567.0,0.01241982]
[1745281712436,0.2283889,87570.0,87567.0,0.001]
[1745281712691,0.22839307,87569.0,87567.0,0.001]
[1745281713021,0.22839307,87569.0,87567.0,0.002]
[1745281713455,0.22839307,87569.0,87567.0,0.001]
[1745281714130,0.22839307,87569.0,87567.0,0.002]
[1745281714337,0.22839307,87569.0,87567.0,0.003]
[1745281714546,0.22839307,87569.0,87567.0,0.002]
[1745281714749,0.22839307,87569.0,87567.0,0.003]
[1745281715784,0.22839307,87569.0,87567.0,0.001]
[1745281716196,0.22839307,87569.0,87552.0,0.05672178]
[1745281716197,0.01142034,87563.0,87552.0,0.0453]
[1745281716451,0.22842917,87555.0,87553.0,0.00045534]
[1745281717668,0.22842917,87555.0,87553.0,0.00145534]
[1745281718132,0.22842917,87555.0,87553.0,0.00245534]
[1745281718968,0.22842917,87555.0,87553.0,0.00145534]
[1745281719175,0.22842917,87555.0,87553.0,0.00045534]
[1745281719349,0.22842721,87556.0,87553.0,0.00045534]
[1745281719548,0.22843041,87555.0,87553.0,0.00045534]
[1745281720615,0.22842721,87556.0,87553.0,0.00045534]
[1745281720616,0.22843045,87554.0,87553.0,0.00045534]
[1745281724119,0.00130069,87555.0,87553.0,0.00045534]
[1745281724326,0.22973069,87555.0,87553.0,0.00045534]
[1745281735023,0.37069069,87555.0,87553.0,0.00045534]
[1745281738242,0.4159,87554.0,87553.0,0.00045534]
[1745281739069,0.42446506,87554.0,87553.0,0.00045534]
[1745281741093,0.42546506,87554.0,87553.0,0.00045534]
[1745281741232,0.42646506,87554.0,87553.0,0.00045534]
[1745281741633,0.4179,87554.0,87553.0,0.00045534]
[1745281753622,0.4179,87554.0,87553.0,0.2288884]
[1745281755014,0.4169,87554.0,87553.0,0.2288884]
[1745281755232,0.4169,87554.0,87553.0,0.2762884]
[1745281755444,0.4169,87554.0,87553.0,0.2876668]
[1745281755671,0.4159,87554.0,87553.0,0.2876668]
[1745281756115,0.4159,87554.0,87553.0,0.2762884]
[1745281756620,0.4159,87554.0,87553.0,0.2772884]
[1745281757069,0.00130069,87555.0,87553.0,0.2772884]
[1745281757921,0.00130069,87555.0,87553.0,0.00245534]
[1745281758131,0.00130069,87555.0,87553.0,0.00145534]
[1745281758525,0.00130069,87555.0,87553.0,0.00245534]
[1745281758753,0.22973113,87555.0,87553.0,0.00145534]
[1745281758967,0.22973113,87555.0,87553.0,0.00245534]
[1745281761524,0.00130069,87555.0,87554.0,0.22843045]
[1745281761757,0.00130069,87555.0,87554.0,0.27483045]
[1745281762798,0.00130069,87555.0,87554.0,0.27583045]
[1745281763198,0.00130069,87555.0,87554.0,0.002]
[1745281763410,0.22972853,87555.0,87554.0,0.002]
[1745281763819,0.75938447,87555.0,87554.0,0.002]
[1745281764432,0.75938447,87555.0,87554.0,0.001]
[1745281764633,0.75938447,87555.0,87553.0,0.00045534]
[1745281765003,0.76038447,87555.0,87553.0,0.00045534]
[1745281765408,0.75938447,87555.0,87553.0,0.00045534]
[1745281765619,0.76038447,87555.0,87553.0,0.00045534]
[1745281765857,0.11375594,87554.0,87553.0,0.00045534]
[1745281767527,0.27375594,87554.0,87553.0,0.00045534]
[1745281767778,0.11375594,87554.0,87553.0,0.00045534]
[1745281768000,0.11475594,87554.0,87553.0,0.00045534]
[1745281768597,0.11575594,87554.0,87553.0,0.00045534]
[1745281768803,0.53165594,87554.0,87553.0,0.00045534]
[1745281770196,0.4179,87554.0,87553.0,0.00045534]
[1745281771640,0.4169,87554.0,87553.0,0.00045534]
[1745281772055,0.4179,87554.0,87553.0,0.00045534]
[1745281772271,0.4169,87554.0,87553.0,0.00045534]
[1745281772473,0.4159,87554.0,87553.0,0.00045534]
[1745281773768,0.4169,87554.0,87553.0,0.00045534]
[1745281775089,0.51286,87554.0,87553.0,0.00045534]
[1745281777816,0.51286,87554.0,87553.0,0.01586535]
[1745281778229,0.51286,87554.0,87553.0,0.00045534]
[1745281778680,0.51186,87554.0,87553.0,0.00045534]
[1745281778917,0.4159,87554.0,87553.0,0.00045534]
[1745281780549,0.00130069,87555.0,87553.0,0.00045534]
[1745281780838,0.00130069,87555.0,87553.0,0.00145534]
[1745281781336,0.00130069,87555.0,87553.0,0.00245534]
[1745281781620,0.00130069,87555.0,87553.0,0.00145534]
[1745281781791,0.00130069,87555.0,87553.0,0.00045534]